[Event "*** Titled Tuesday 3|2 Blitz"]
[Site "Chess.com"]
[Date "2016.05.03"]
[Round "6"]
[White "Gevorg_Harutjunyan"]
[Black "GeorgMeier"]
[Result "1/2-1/2"]
[WhiteElo "2653"]
[BlackElo "2747"]
[TimeControl "180+2"]
[EndTime "18:10:09 PDT"]
[Termination "Game drawn by repetition"]

1. Nf3 {[%clk 0:02:58]} 1... d5 {[%clk 0:03:00.8]} 2. c4 {[%clk 0:02:58.3]} 2...
e6 {[%clk 0:03:01.5]} 3. g3 {[%clk 0:02:58.8]} 3... Nf6 {[%clk 0:03:00.9]} 4.
Bg2 {[%clk 0:03:00.3]} 4... dxc4 {[%clk 0:03:02.2]} 5. O-O {[%clk 0:03:01.2]}
5... a6 {[%clk 0:03:02]} 6. a4 {[%clk 0:02:56.7]} 6... Nc6 {[%clk 0:03:02.7]} 7.
Qc2 {[%clk 0:02:54.3]} 7... Na5 {[%clk 0:03:01.9]} 8. Na3 {[%clk 0:02:50.1]}
8... Qd5 {[%clk 0:03:02.5]} 9. Nh4 {[%clk 0:02:20.7]} 9... Qd4 {[%clk
0:02:48.4]} 10. Nf3 {[%clk 0:02:18.6]} 10... Qd5 {[%clk 0:02:49.6]} 11. Nh4
{[%clk 0:02:15.8]} 11... Qd4 {[%clk 0:02:17.4]} 12. Nf3 {[%clk 0:02:15]} 12...
Qd5 {[%clk 0:01:57.6]} 13. Nh4 {[%clk 0:02:14.8]} 1/2-1/2

[Event "*** Titled Tuesday 3|2 Blitz"]
[Site "Chess.com"]
[Date "2016.05.03"]
[Round "6"]
[White "davidarenas1224"]
[Black "Kawhi_Leonard2"]
[Result "0-1"]
[WhiteElo "2169"]
[BlackElo "2124"]
[TimeControl "180+2"]
[EndTime "18:11:59 PDT"]
[Termination "Kawhi_Leonard2 won on time"]

1. e4 {[%clk 0:03:01.9]} 1... c5 {[%clk 0:02:58.8]} 2. Nf3 {[%clk 0:03:02.7]}
2... d6 {[%clk 0:03:00.3]} 3. d4 {[%clk 0:03:03.9]} 3... cxd4 {[%clk 0:03:01.2]}
4. Nxd4 {[%clk 0:03:05.8]} 4... Nf6 {[%clk 0:03:02.2]} 5. Nc3 {[%clk 0:03:07.4]}
5... g6 {[%clk 0:03:03.8]} 6. Be3 {[%clk 0:03:07.6]} 6... Bg7 {[%clk 0:03:05.3]}
7. f3 {[%clk 0:03:08.4]} 7... O-O {[%clk 0:03:06.7]} 8. Qd2 {[%clk 0:03:09.7]}
8... Nc6 {[%clk 0:03:07.8]} 9. g4 {[%clk 0:03:10.9]} 9... Be6 {[%clk 0:03:07.1]}
10. h4 {[%clk 0:03:05.6]} 10... d5 {[%clk 0:03:06.2]} 11. g5 {[%clk 0:02:47]}
11... Nh5 {[%clk 0:03:01.7]} 12. Nxe6 {[%clk 0:02:48]} 12... fxe6 {[%clk
0:03:02]} 13. Bh3 {[%clk 0:02:48.7]} 13... d4 {[%clk 0:02:52.9]} 14. Bxe6+
{[%clk 0:02:48.9]} 14... Kh8 {[%clk 0:02:53.4]} 15. Nd5 {[%clk 0:02:43.9]} 15...
dxe3 {[%clk 0:02:52.3]} 16. Qxe3 {[%clk 0:02:45.8]} 16... Bxb2 {[%clk
0:02:48.1]} 17. Rb1 {[%clk 0:02:46.2]} 17... Qa5+ {[%clk 0:02:46.3]} 18. Kf2
{[%clk 0:02:42.3]} 18... Bd4 {[%clk 0:02:44.7]} 0-1

[Event "*** Titled Tuesday 3|2 Blitz"]
[Site "Chess.com"]
[Date "2016.05.03"]
[Round "6"]
[White "Tirantes"]
[Black "SabinaFoisor"]
[Result "0-1"]
[WhiteElo "2228"]
[BlackElo "2221"]
[TimeControl "180+2"]
[EndTime "18:12:11 PDT"]
[Termination "SabinaFoisor won by resignation"]

1. c4 {[%clk 0:02:06.5]} 1... e6 {[%clk 0:02:57.8]} 2. g3 {[%clk 0:02:06.6]}
2... d5 {[%clk 0:02:58.7]} 3. Bg2 {[%clk 0:02:07.3]} 3... Nf6 {[%clk 0:02:59.7]}
4. Nf3 {[%clk 0:02:07.5]} 4... Be7 {[%clk 0:03:00.9]} 5. b3 {[%clk 0:02:07.9]}
5... O-O {[%clk 0:03:01.8]} 6. Bb2 {[%clk 0:02:08.3]} 6... c5 {[%clk 0:03:02.9]}
7. O-O {[%clk 0:02:09]} 7... Nc6 {[%clk 0:03:03.2]} 8. e3 {[%clk 0:02:09.1]}
8... b6 {[%clk 0:03:03.5]} 9. Nc3 {[%clk 0:02:08.8]} 9... dxc4 {[%clk
0:02:59.6]} 10. bxc4 {[%clk 0:02:08.4]} 10... Bb7 {[%clk 0:02:59.8]} 11. d3
{[%clk 0:02:08]} 11... Rc8 {[%clk 0:02:59.2]} 12. Qe2 {[%clk 0:02:08.5]} 12...
Rc7 {[%clk 0:02:58.9]} 13. Rad1 {[%clk 0:02:07]} 13... Rd7 {[%clk 0:02:59.7]}
14. Ne1 {[%clk 0:02:06.9]} 14... Qa8 {[%clk 0:02:59.8]} 15. f4 {[%clk
0:02:06.7]} 15... Rfd8 {[%clk 0:02:56.8]} 16. g4 {[%clk 0:02:06.9]} 16... Nb4
{[%clk 0:02:53.9]} 17. g5 {[%clk 0:02:05.2]} 17... Bxg2 {[%clk 0:02:52.3]} 18.
Qxg2 {[%clk 0:02:00.4]} 18... Qxg2+ {[%clk 0:02:51.9]} 19. Kxg2 {[%clk
0:02:00.5]} 19... Ne8 {[%clk 0:02:50.3]} 20. d4 {[%clk 0:01:44.7]} 20... cxd4
{[%clk 0:02:50]} 21. exd4 {[%clk 0:01:43.3]} 21... Rxd4 {[%clk 0:02:49.9]} 22.
Nf3 {[%clk 0:01:40.2]} 22... Rxd1 {[%clk 0:02:25]} 23. Nxd1 {[%clk 0:01:40.1]}
23... Nd3 {[%clk 0:02:23.5]} 24. Kg3 {[%clk 0:01:33.8]} 24... Nd6 {[%clk
0:02:18.5]} 25. Ne5 {[%clk 0:01:26]} 25... Nxe5 {[%clk 0:02:15.4]} 26. Bxe5
{[%clk 0:01:24.9]} 26... Nxc4 {[%clk 0:02:16.1]} 27. Ba1 {[%clk 0:01:16.6]}
27... Rd3+ {[%clk 0:02:14.3]} 28. Kg4 {[%clk 0:01:07]} 28... Rxd1 {[%clk
0:02:12.7]} 0-1

[Event "*** Titled Tuesday 3|2 Blitz"]
[Site "Chess.com"]
[Date "2016.05.03"]
[Round "6"]
[White "platy3"]
[Black "TheCount"]
[Result "1-0"]
[WhiteElo "2651"]
[BlackElo "2534"]
[TimeControl "180+2"]
[EndTime "18:12:13 PDT"]
[Termination "platy3 won by resignation"]

1. e4 {[%clk 0:03:01.9]} 1... e5 {[%clk 0:03:01]} 2. Nf3 {[%clk 0:03:02.7]} 2...
Nc6 {[%clk 0:03:02.5]} 3. Bb5 {[%clk 0:03:03.6]} 3... a6 {[%clk 0:03:04]} 4. Ba4
{[%clk 0:03:04.9]} 4... Nf6 {[%clk 0:03:05.4]} 5. d3 {[%clk 0:03:04.9]} 5... d6
{[%clk 0:02:59.5]} 6. c3 {[%clk 0:03:05.4]} 6... b5 {[%clk 0:02:58.2]} 7. Bc2
{[%clk 0:03:05.4]} 7... Be7 {[%clk 0:02:59.9]} 8. O-O {[%clk 0:03:06.4]} 8...
O-O {[%clk 0:03:01.4]} 9. h3 {[%clk 0:03:07.4]} 9... d5 {[%clk 0:02:56.6]} 10.
Nbd2 {[%clk 0:03:00]} 10... d4 {[%clk 0:02:45.9]} 11. cxd4 {[%clk 0:02:59.3]}
11... exd4 {[%clk 0:02:47.8]} 12. a4 {[%clk 0:02:55.4]} 12... Bb7 {[%clk
0:02:14.9]} 13. Nb3 {[%clk 0:02:56]} 13... Re8 {[%clk 0:01:36.4]} 14. Bf4 {[%clk
0:02:54]} 14... h6 {[%clk 0:01:30.9]} 15. Qd2 {[%clk 0:02:50.2]} 15... Bb4
{[%clk 0:01:28.6]} 16. Qd1 {[%clk 0:02:46.5]} 16... Bd6 {[%clk 0:01:18.1]} 17.
Qd2 {[%clk 0:02:42.8]} 17... Bxf4 {[%clk 0:01:14.3]} 18. Qxf4 {[%clk 0:02:43.8]}
18... Nb4 {[%clk 0:01:15.6]} 19. Rfc1 {[%clk 0:02:40.7]} 19... Rc8 {[%clk
0:00:39]} 20. axb5 {[%clk 0:02:36.9]} 20... axb5 {[%clk 0:00:39.1]} 21. Nc5
{[%clk 0:02:35.3]} 21... Bc6 {[%clk 0:00:36.6]} 22. Bb3 {[%clk 0:02:36.6]} 22...
Qd6 {[%clk 0:00:32.5]} 23. Qd2 {[%clk 0:02:37.2]} 1-0

[Event "*** Titled Tuesday 3|2 Blitz"]
[Site "Chess.com"]
[Date "2016.05.03"]
[Round "6"]
[White "Noukii"]
[Black "rookoco"]
[Result "1-0"]
[WhiteElo "2703"]
[BlackElo "2456"]
[TimeControl "180+2"]
[EndTime "18:12:20 PDT"]
[Termination "Noukii won by resignation"]

1. d4 {[%clk 0:03:01.9]} 1... d5 {[%clk 0:02:59.6]} 2. Nf3 {[%clk 0:03:01.2]}
2... c6 {[%clk 0:02:59.6]} 3. c4 {[%clk 0:02:59.8]} 3... Nf6 {[%clk 0:02:59.6]}
4. Nc3 {[%clk 0:03:01.3]} 4... dxc4 {[%clk 0:03:00.7]} 5. a4 {[%clk 0:03:01.4]}
5... e6 {[%clk 0:03:01.9]} 6. e4 {[%clk 0:03:01.1]} 6... Bb4 {[%clk 0:03:01.3]}
7. Bxc4 {[%clk 0:03:02.6]} 7... Nxe4 {[%clk 0:03:01.5]} 8. O-O {[%clk
0:03:04.3]} 8... Nf6 {[%clk 0:02:44.7]} 9. Bg5 {[%clk 0:03:03.4]} 9... Nbd7
{[%clk 0:02:44.2]} 10. Qe2 {[%clk 0:02:51.4]} 10... Be7 {[%clk 0:02:40.3]} 11.
Rfe1 {[%clk 0:02:45.5]} 11... O-O {[%clk 0:02:39]} 12. Rad1 {[%clk 0:02:42.8]}
12... Nb6 {[%clk 0:02:31]} 13. Bb3 {[%clk 0:02:38]} 13... Nfd5 {[%clk
0:02:30.6]} 14. Bd2 {[%clk 0:02:37.2]} 14... a5 {[%clk 0:02:28.5]} 15. Ne5
{[%clk 0:02:36.4]} 15... Nd7 {[%clk 0:02:28.2]} 16. Nf3 {[%clk 0:02:27.1]} 16...
Bb4 {[%clk 0:02:25.3]} 17. Qe4 {[%clk 0:02:25.2]} 17... N7f6 {[%clk 0:02:25]}
18. Qh4 {[%clk 0:02:25.3]} 18... Be7 {[%clk 0:02:15.3]} 19. Bc2 {[%clk
0:02:18.5]} 19... Nb4 {[%clk 0:02:13.3]} 20. Bb1 {[%clk 0:02:18.2]} 20... b5
{[%clk 0:02:05.2]} 21. Bg5 {[%clk 0:01:59.1]} 21... g6 {[%clk 0:01:57.1]} 22.
axb5 {[%clk 0:01:57.1]} 22... cxb5 {[%clk 0:01:56.6]} 23. d5 {[%clk 0:01:58.5]}
23... Nbxd5 {[%clk 0:01:21.1]} 24. Nxd5 {[%clk 0:01:59]} 24... Nxd5 {[%clk
0:01:13.8]} 25. Rxd5 {[%clk 0:01:59.6]} 25... Qxd5 {[%clk 0:01:09.9]} 26. Bxe7
{[%clk 0:01:59.1]} 26... Re8 {[%clk 0:01:05.2]} 27. Be4 {[%clk 0:01:59.7]} 1-0

[Event "*** Titled Tuesday 3|2 Blitz"]
[Site "Chess.com"]
[Date "2016.05.03"]
[Round "6"]
[White "AkshatChandra"]
[Black "E-Shaposhnikov"]
[Result "0-1"]
[WhiteElo "2617"]
[BlackElo "2485"]
[TimeControl "180+2"]
[EndTime "18:14:18 PDT"]
[Termination "E-Shaposhnikov won on time"]

1. e4 {[%clk 0:03:01.9]} 1... c5 {[%clk 0:03:00.4]} 2. Nf3 {[%clk 0:03:02.3]}
2... e6 {[%clk 0:03:01.4]} 3. d4 {[%clk 0:03:03.4]} 3... cxd4 {[%clk 0:03:00.9]}
4. Nxd4 {[%clk 0:03:05.3]} 4... a6 {[%clk 0:03:02.5]} 5. Bd3 {[%clk 0:03:06.1]}
5... Nf6 {[%clk 0:03:03.1]} 6. O-O {[%clk 0:03:07]} 6... e5 {[%clk 0:03:04.5]}
7. Bg5 {[%clk 0:03:05.9]} 7... h6 {[%clk 0:02:59.9]} 8. Bxf6 {[%clk 0:03:06.3]}
8... Qxf6 {[%clk 0:03:01.8]} 9. Nf5 {[%clk 0:03:06.3]} 9... g6 {[%clk
0:02:51.5]} 10. Ne3 {[%clk 0:03:06.2]} 10... Nc6 {[%clk 0:02:49.8]} 11. Nc3
{[%clk 0:03:00.2]} 11... Bg7 {[%clk 0:02:31.3]} 12. Ncd5 {[%clk 0:02:57.8]}
12... Qd8 {[%clk 0:02:32.3]} 13. a4 {[%clk 0:02:53]} 13... O-O {[%clk
0:02:32.2]} 14. c3 {[%clk 0:02:51]} 14... d6 {[%clk 0:02:33.3]} 15. b4 {[%clk
0:02:50]} 15... Be6 {[%clk 0:02:32.3]} 16. a5 {[%clk 0:02:50.4]} 16... f5 {[%clk
0:02:18.5]} 17. Bc4 {[%clk 0:02:16.1]} 17... fxe4 {[%clk 0:01:57.5]} 18. Nb6
{[%clk 0:02:14.4]} 18... Bxc4 {[%clk 0:01:57.6]} 19. Nexc4 {[%clk 0:02:14.4]}
19... Rb8 {[%clk 0:01:49.5]} 20. Nxd6 {[%clk 0:02:12.4]} 20... e3 {[%clk
0:01:44.4]} 21. Qd5+ {[%clk 0:02:08.9]} 21... Kh7 {[%clk 0:01:44.9]} 22. fxe3
{[%clk 0:02:09.5]} 22... Qg5 {[%clk 0:01:40.7]} 23. Qe4 {[%clk 0:01:59.3]} 23...
Qe7 {[%clk 0:01:20.5]} 24. Ndc4 {[%clk 0:01:44]} 24... Rbd8 {[%clk 0:01:14.9]}
25. g3 {[%clk 0:01:32.9]} 25... Qe6 {[%clk 0:01:12.6]} 26. Kg2 {[%clk
0:01:28.6]} 26... h5 {[%clk 0:01:13.5]} 27. Rxf8 {[%clk 0:01:05.1]} 27... Rxf8
{[%clk 0:01:12.9]} 0-1

[Event "*** Titled Tuesday 3|2 Blitz"]
[Site "Chess.com"]
[Date "2016.05.03"]
[Round "6"]
[White "Assasin14"]
[Black "tactics321"]
[Result "1-0"]
[WhiteElo "2052"]
[BlackElo "2114"]
[TimeControl "180+2"]
[EndTime "18:14:18 PDT"]
[Termination "Assasin14 won by resignation"]

1. e4 {[%clk 0:03:01.9]} 1... e5 {[%clk 0:02:58.6]} 2. Nf3 {[%clk 0:03:02.6]}
2... Nc6 {[%clk 0:02:59.8]} 3. Bb5 {[%clk 0:03:03.7]} 3... Nf6 {[%clk
0:03:00.2]} 4. Qe2 {[%clk 0:03:04.4]} 4... Bd6 {[%clk 0:03:00.2]} 5. c3 {[%clk
0:03:02.3]} 5... O-O {[%clk 0:03:00.3]} 6. O-O {[%clk 0:03:02.8]} 6... Re8
{[%clk 0:03:01.3]} 7. d3 {[%clk 0:02:59.7]} 7... Bf8 {[%clk 0:03:01.7]} 8. Nbd2
{[%clk 0:02:53.3]} 8... a6 {[%clk 0:03:00.4]} 9. Ba4 {[%clk 0:02:53.2]} 9... b5
{[%clk 0:02:59.1]} 10. Bb3 {[%clk 0:02:52.6]} 10... d6 {[%clk 0:02:51.6]} 11.
Re1 {[%clk 0:02:43.8]} 11... Bb7 {[%clk 0:02:52.1]} 12. Nf1 {[%clk 0:02:41.6]}
12... h6 {[%clk 0:02:52.7]} 13. Ne3 {[%clk 0:02:40.7]} 13... Ne7 {[%clk
0:02:53.5]} 14. Nh4 {[%clk 0:02:37.9]} 14... d5 {[%clk 0:02:46.8]} 15. f3 {[%clk
0:02:23.5]} 15... c5 {[%clk 0:02:41.8]} 16. Nef5 {[%clk 0:02:16.8]} 16... Nxf5
{[%clk 0:02:40.7]} 17. Nxf5 {[%clk 0:02:17.6]} 17... c4 {[%clk 0:02:38.7]} 18.
Bc2 {[%clk 0:02:18.2]} 18... Bc5+ {[%clk 0:02:25.4]} 19. Kh1 {[%clk 0:02:18.6]}
19... dxe4 {[%clk 0:02:04.9]} 20. dxe4 {[%clk 0:02:17.4]} 20... Bc8 {[%clk
0:02:05.9]} 21. a4 {[%clk 0:02:02.4]} 21... Bxf5 {[%clk 0:02:04.4]} 22. exf5
{[%clk 0:02:01.5]} 22... Qb6 {[%clk 0:01:59.4]} 23. axb5 {[%clk 0:01:54.3]}
23... axb5 {[%clk 0:02:01.3]} 24. Bd2 {[%clk 0:01:55.7]} 24... Rad8 {[%clk
0:01:59.1]} 25. b4 {[%clk 0:01:51.1]} 25... Bf8 {[%clk 0:01:55.1]} 26. Be3
{[%clk 0:01:50.2]} 26... Qc6 {[%clk 0:01:49.8]} 27. Ra5 {[%clk 0:01:42.7]} 27...
Ra8 {[%clk 0:01:42.4]} 28. Rea1 {[%clk 0:01:35.7]} 28... Rxa5 {[%clk 0:01:30.1]}
29. bxa5 {[%clk 0:01:35.1]} 29... b4 {[%clk 0:01:23.3]} 30. Ba4 {[%clk 0:01:34]}
30... Qc8 {[%clk 0:01:14.8]} 31. Bxe8 {[%clk 0:01:33.2]} 31... Nxe8 {[%clk
0:01:16.7]} 32. a6 {[%clk 0:01:29.1]} 32... bxc3 {[%clk 0:00:58.8]} 33. a7
{[%clk 0:01:28.7]} 33... Qa8 {[%clk 0:00:59.9]} 34. Qxc4 {[%clk 0:01:27.1]}
34... Nd6 {[%clk 0:01:00.9]} 35. Qxc3 {[%clk 0:01:14.7]} 35... Nxf5 {[%clk
0:01:01.4]} 36. Bf2 {[%clk 0:01:11.7]} 36... Bd6 {[%clk 0:00:51.9]} 37. Qd3
{[%clk 0:01:04.1]} 37... g6 {[%clk 0:00:49.7]} 38. Qe4 {[%clk 0:01:02.2]} 1-0

[Event "*** Titled Tuesday 3|2 Blitz"]
[Site "Chess.com"]
[Date "2016.05.03"]
[Round "6"]
[White "AlexanderL"]
[Black "MinhGTrAn"]
[Result "0-1"]
[WhiteElo "2570"]
[BlackElo "2632"]
[TimeControl "180+2"]
[EndTime "18:14:46 PDT"]
[Termination "MinhGTrAn won by resignation"]

1. d4 {[%clk 0:03:01.9]} 1... Nf6 {[%clk 0:03:01]} 2. Bg5 {[%clk 0:03:02.4]}
2... e6 {[%clk 0:03:02.9]} 3. Nd2 {[%clk 0:03:02.1]} 3... h6 {[%clk 0:03:04.8]}
4. Bh4 {[%clk 0:03:02.3]} 4... Be7 {[%clk 0:02:55.9]} 5. e4 {[%clk 0:02:58]}
5... d5 {[%clk 0:02:53.1]} 6. e5 {[%clk 0:02:58.5]} 6... Nfd7 {[%clk 0:02:54.7]}
7. Bxe7 {[%clk 0:02:58.9]} 7... Qxe7 {[%clk 0:02:56.6]} 8. f4 {[%clk 0:02:56.7]}
8... c5 {[%clk 0:02:56.2]} 9. c3 {[%clk 0:02:57.8]} 9... Nc6 {[%clk 0:02:55.5]}
10. Ngf3 {[%clk 0:02:53.8]} 10... cxd4 {[%clk 0:02:53]} 11. cxd4 {[%clk
0:02:49.3]} 11... Qb4 {[%clk 0:02:53.1]} 12. a3 {[%clk 0:02:29.1]} 12... Qxb2
{[%clk 0:02:50]} 13. Rb1 {[%clk 0:02:30.2]} 13... Qxa3 {[%clk 0:02:48.6]} 14.
Bb5 {[%clk 0:02:27]} 14... Qe3+ {[%clk 0:02:46.8]} 15. Qe2 {[%clk 0:02:26.2]}
15... Qxe2+ {[%clk 0:02:46.1]} 16. Kxe2 {[%clk 0:02:27.4]} 16... Ndb8 {[%clk
0:02:43.4]} 17. Rhc1 {[%clk 0:02:25.5]} 17... Bd7 {[%clk 0:02:43.1]} 18. Nb3
{[%clk 0:02:17.6]} 18... b6 {[%clk 0:02:41.1]} 19. Ke3 {[%clk 0:02:11.2]} 19...
Ke7 {[%clk 0:02:41.4]} 20. Bd3 {[%clk 0:02:10.3]} 20... a5 {[%clk 0:02:37.1]}
21. g4 {[%clk 0:02:10.1]} 21... Nb4 {[%clk 0:02:34.9]} 22. Be2 {[%clk
0:02:08.4]} 22... N8c6 {[%clk 0:02:33.2]} 23. Nbd2 {[%clk 0:02:06.2]} 23... a4
{[%clk 0:02:33.6]} 24. Bb5 {[%clk 0:02:03.6]} 24... a3 {[%clk 0:02:30.3]} 25.
Bxc6 {[%clk 0:02:01.4]} 25... Nxc6 {[%clk 0:02:26.9]} 26. Rxb6 {[%clk
0:02:02.2]} 26... Rhb8 {[%clk 0:02:23.9]} 27. Rxb8 {[%clk 0:01:57.6]} 27... Rxb8
{[%clk 0:02:17.3]} 28. Ra1 {[%clk 0:01:58.6]} 28... Nb4 {[%clk 0:02:18.4]} 29.
Ne1 {[%clk 0:01:58.7]} 29... a2 {[%clk 0:02:14.2]} 30. Nb3 {[%clk 0:01:59.6]}
30... Nc6 {[%clk 0:01:53.4]} 31. Nc5 {[%clk 0:00:42.7]} 31... Rb1 {[%clk
0:01:52.5]} 32. Rxa2 {[%clk 0:00:31.2]} 32... Rxe1+ {[%clk 0:01:53]} 33. Kd2
{[%clk 0:00:27.4]} 33... Rh1 {[%clk 0:01:51.7]} 34. Ra6 {[%clk 0:00:28.2]} 34...
Rxh2+ {[%clk 0:01:50.8]} 35. Ke3 {[%clk 0:00:29.5]} 35... Rh3+ {[%clk
0:01:51.2]} 36. Kf2 {[%clk 0:00:30.5]} 36... Rc3 {[%clk 0:01:49.5]} 37. Na4
{[%clk 0:00:24.7]} 37... Nb4 {[%clk 0:01:38.6]} 38. Ra7 {[%clk 0:00:23.9]} 38...
Rc2+ {[%clk 0:01:39.8]} 39. Ke1 {[%clk 0:00:21.6]} 39... Ra2 {[%clk 0:01:41.7]}
40. f5 {[%clk 0:00:19]} 40... Rxa4 {[%clk 0:01:42]} 41. f6+ {[%clk 0:00:20.4]}
41... gxf6 {[%clk 0:01:43.9]} 42. exf6+ {[%clk 0:00:21.7]} 42... Kxf6 {[%clk
0:01:44.7]} 43. Rxd7 {[%clk 0:00:21.8]} 43... Ra2 {[%clk 0:01:45.6]} 44. g5+
{[%clk 0:00:22.2]} 44... hxg5 {[%clk 0:01:46.5]} 0-1

[Event "*** Titled Tuesday 3|2 Blitz"]
[Site "Chess.com"]
[Date "2016.05.03"]
[Round "6"]
[White "HansCoolNiemann"]
[Black "jposthuma"]
[Result "1-0"]
[WhiteElo "2296"]
[BlackElo "2144"]
[TimeControl "180+2"]
[EndTime "18:15:06 PDT"]
[Termination "HansCoolNiemann won by resignation"]

1. d4 {[%clk 0:03:01.9]} 1... Nf6 {[%clk 0:02:53.1]} 2. c4 {[%clk 0:03:00.2]}
2... c5 {[%clk 0:02:51.7]} 3. d5 {[%clk 0:02:59.1]} 3... b5 {[%clk 0:02:53]} 4.
cxb5 {[%clk 0:02:57.6]} 4... a6 {[%clk 0:02:53.1]} 5. f3 {[%clk 0:02:56.2]} 5...
g6 {[%clk 0:02:48.6]} 6. e4 {[%clk 0:02:55]} 6... d6 {[%clk 0:02:50.1]} 7. bxa6
{[%clk 0:02:52.5]} 7... Bxa6 {[%clk 0:02:50.9]} 8. Bxa6 {[%clk 0:02:50.8]} 8...
Nxa6 {[%clk 0:02:52.8]} 9. Ne2 {[%clk 0:02:46.7]} 9... Bg7 {[%clk 0:02:53.8]}
10. Nec3 {[%clk 0:02:45.9]} 10... O-O {[%clk 0:02:53.6]} 11. O-O {[%clk
0:02:45.2]} 11... Qb6 {[%clk 0:02:54.3]} 12. Nd2 {[%clk 0:02:42.7]} 12... Rfb8
{[%clk 0:02:52.5]} 13. Qe2 {[%clk 0:02:38]} 13... Nc7 {[%clk 0:02:48.7]} 14. Kh1
{[%clk 0:02:28]} 14... Nd7 {[%clk 0:02:42.4]} 15. Nc4 {[%clk 0:02:25.1]} 15...
Qa6 {[%clk 0:02:43.7]} 16. Re1 {[%clk 0:02:15.9]} 16... Nb6 {[%clk 0:02:39.6]}
17. Nxb6 {[%clk 0:02:11.1]} 17... Qxe2 {[%clk 0:02:41.5]} 18. Rxe2 {[%clk
0:02:09.2]} 18... Rxb6 {[%clk 0:02:42.3]} 19. Rc2 {[%clk 0:02:06.1]} 19... Kf8
{[%clk 0:02:18.1]} 20. Bd2 {[%clk 0:01:59.3]} 20... Ke8 {[%clk 0:02:15.9]} 21.
Re1 {[%clk 0:01:11]} 21... Na6 {[%clk 0:02:07]} 22. Na4 {[%clk 0:01:02.9]} 22...
Rb7 {[%clk 0:02:02.1]} 23. b3 {[%clk 0:01:02.2]} 23... Nc7 {[%clk 0:01:53.7]}
24. f4 {[%clk 0:00:57]} 24... f5 {[%clk 0:01:43.8]} 25. e5 {[%clk 0:00:56.4]}
25... dxe5 {[%clk 0:01:41.6]} 26. Nxc5 {[%clk 0:00:53.5]} 26... Rba7 {[%clk
0:01:39]} 27. fxe5 {[%clk 0:00:52.4]} 27... Rxa2 {[%clk 0:01:21.3]} 28. Rxa2
{[%clk 0:00:49.5]} 28... Rxa2 {[%clk 0:01:23.2]} 29. d6 {[%clk 0:00:49.3]} 29...
exd6 {[%clk 0:00:11.7]} 30. exd6+ {[%clk 0:00:46]} 30... Kd8 {[%clk 0:00:13.6]}
31. Bg5+ {[%clk 0:00:43.5]} 31... Kc8 {[%clk 0:00:08.6]} 32. d7+ {[%clk
0:00:41]} 1-0

[Event "*** Titled Tuesday 3|2 Blitz"]
[Site "Chess.com"]
[Date "2016.05.03"]
[Round "6"]
[White "Mischuk_D"]
[Black "Penguininja"]
[Result "0-1"]
[WhiteElo "2414"]
[BlackElo "2231"]
[TimeControl "180+2"]
[EndTime "18:15:14 PDT"]
[Termination "Penguininja won by resignation"]

1. e4 {[%clk 0:02:33.8]} 1... e5 {[%clk 0:02:59.9]} 2. Nf3 {[%clk 0:02:34.4]}
2... Nc6 {[%clk 0:03:00.7]} 3. d4 {[%clk 0:02:35.2]} 3... exd4 {[%clk
0:03:01.2]} 4. Nxd4 {[%clk 0:02:36.1]} 4... Bb4+ {[%clk 0:03:00.6]} 5. c3 {[%clk
0:02:35.9]} 5... Bc5 {[%clk 0:03:01.7]} 6. Nb3 {[%clk 0:02:30]} 6... Bb6 {[%clk
0:03:02.9]} 7. Na3 {[%clk 0:02:30.1]} 7... d6 {[%clk 0:03:00.3]} 8. Nc4 {[%clk
0:02:30.8]} 8... Nf6 {[%clk 0:03:01.9]} 9. Bd3 {[%clk 0:02:30.1]} 9... O-O
{[%clk 0:02:53.7]} 10. Nxb6 {[%clk 0:02:31]} 10... axb6 {[%clk 0:02:54.6]} 11.
Bg5 {[%clk 0:02:31.9]} 11... Ne5 {[%clk 0:02:53.3]} 12. Be2 {[%clk 0:02:31.5]}
12... h6 {[%clk 0:02:54.5]} 13. Bh4 {[%clk 0:02:31.8]} 13... Ng6 {[%clk
0:02:55.6]} 14. Bxf6 {[%clk 0:02:32.7]} 14... Qxf6 {[%clk 0:02:57.5]} 15. O-O
{[%clk 0:02:33.6]} 15... Be6 {[%clk 0:02:46.6]} 16. Nd4 {[%clk 0:02:32.2]} 16...
Nf4 {[%clk 0:02:36.6]} 17. Bf3 {[%clk 0:02:30.6]} 17... Bc4 {[%clk 0:02:33.7]}
18. Re1 {[%clk 0:02:29.2]} 18... Rfe8 {[%clk 0:02:18.5]} 19. Qd2 {[%clk
0:02:27.2]} 19... c5 {[%clk 0:02:12.6]} 20. Nf5 {[%clk 0:02:27.2]} 20... Nd3
{[%clk 0:02:07.9]} 21. Re3 {[%clk 0:02:25.3]} 21... d5 {[%clk 0:01:41.8]} 22.
Rxd3 {[%clk 0:02:19.4]} 22... dxe4 {[%clk 0:01:43.2]} 23. Bxe4 {[%clk
0:01:35.9]} 23... Rxe4 {[%clk 0:01:42.6]} 24. Rf3 {[%clk 0:01:36.8]} 24... Rae8
{[%clk 0:01:17.5]} 25. h3 {[%clk 0:01:36.8]} 25... Be2 {[%clk 0:01:13.5]} 26.
Rf4 {[%clk 0:01:29]} 26... Rxf4 {[%clk 0:01:06.7]} 27. Qxf4 {[%clk 0:01:29.9]}
27... Bd3 {[%clk 0:01:07.8]} 28. g4 {[%clk 0:01:28.6]} 28... g5 {[%clk
0:01:02.4]} 29. Qf3 {[%clk 0:01:19.3]} 29... Be4 {[%clk 0:00:58.2]} 30. Qe3
{[%clk 0:01:20.4]} 30... Re6 {[%clk 0:00:51.4]} 31. Ng3 {[%clk 0:01:12.4]} 31...
Bc6 {[%clk 0:00:52.5]} 32. Nh5 {[%clk 0:01:13.2]} 32... Qg6 {[%clk 0:00:45.7]}
33. Qd2 {[%clk 0:01:12.1]} 33... Qe4 {[%clk 0:00:41.4]} 34. f3 {[%clk
0:01:05.3]} 34... Qxf3 {[%clk 0:00:41.9]} 35. Rd1 {[%clk 0:00:37.7]} 35... Qh1+
{[%clk 0:00:40.4]} 0-1